bitfinex/quotes_ETHUSD_20260313
["timestamp","ask_amount","ask_price","bid_price","bid_amount"]
[1773414273449,0.001,2151.2,2150.7,0.23298624]
[1773414273632,2.77508803,2151.4,2150.4,7.04419692]
[1773414273633,2.74793009,2151.4,2150.4,7.04419692]
[1773414273959,2.67661437,2151.4,2150.7,0.246828]
[1773414274261,7.70857,2151.3,2150.0,7.0443736]
[1773414274461,13.00008254,2151.2,2150.2,0.246828]
[1773414274663,5.90985954,2151.1,2150.2,0.246828]
[1773414274849,5.90985954,2151.1,2148.9,4.65334901]
[1773414274850,5.90985954,2150.5,2149.0,0.04653327]
[1773414275057,5.89586032,2150.3,2148.8,6.16556836]
[1773414275229,11.46815363,2150.2,2149.2,0.246828]
[1773414275437,1.16273661,2150.1,2149.2,0.276433]
[1773414275635,1.13404714,2150.1,2149.2,0.276433]
[1773414275831,1.09180304,2150.1,2149.2,0.276433]
[1773414276032,1.04903619,2150.1,2149.1,0.276433]
[1773414276237,1.0212741,2150.1,2149.1,0.276433]
[1773414276732,6.93113364,2150.1,2149.0,0.276433]
[1773414277355,5.90985954,2149.9,2148.9,0.276433]
[1773414277561,1.16289887,2149.8,2148.9,0.276433]
[1773414277761,1.12073444,2149.8,2148.9,0.276433]
[1773414277935,1.07749807,2149.8,2148.9,0.276433]
[1773414278260,1.00494475,2149.8,2148.9,0.276433]
[1773414278558,0.97664763,2149.8,2149.1,0.276433]
[1773414278763,0.93319689,2149.8,2149.1,0.276433]
[1773414278963,7.51021816,2149.7,2148.9,0.05531425]
[1773414279128,7.51021816,2149.7,2148.6,0.055315]
[1773414279129,7.46807823,2149.7,2148.6,0.055315]
[1773414279335,5.90985954,2149.5,2148.5,0.0011]
[1773414279663,1.13333301,2149.3,2148.5,0.0011]
[1773414279963,1.06245889,2149.3,2148.5,0.0011]
[1773414280160,1.02020502,2149.3,2148.5,0.0011]
[1773414280364,5.89542414,2149.1,2147.4,0.04656794]
[1773414280541,3.176412,2149.0,2148.0,0.055315]
[1773414280744,5.86657251,2149.1,2148.1,0.055315]
[1773414280946,1.58677084,2149.0,2148.1,0.055315]
[1773414281152,1.542683,2149.0,2148.1,0.055315]
[1773414281350,1.48610738,2149.0,2148.1,0.055315]
[1773414281560,1.16338591,2148.9,2148.1,0.055315]
[1773414281751,1.13519158,2148.9,2148.1,0.055315]
[1773414281960,1.09159857,2148.9,2148.1,0.055315]
[1773414282134,1.04807763,2148.9,2148.1,0.055315]
[1773414282331,1.00305957,2148.9,2148.1,0.055315]
[1773414282637,0.9737174,2148.9,2148.1,0.055315]
[1773414282955,0.90211059,2148.9,2148.1,0.055315]
[1773414283261,1.14852114,2148.9,2148.0,0.055315]
[1773414283631,16.93254254,2148.6,2147.3,1.16424048]
[1773414283858,3.899987,2148.5,2147.5,0.055315]
[1773414284063,3.87160319,2148.5,2147.5,0.083771]
[1773414284367,2.63511587,2149.0,2148.1,0.140112]
[1773414284663,2.62118214,2149.0,2148.1,0.140112]
[1773414285740,9.000878,2149.4,2148.3,0.140112]
[1773414285938,1.62959041,2150.4,2149.2,0.140112]
[1773414285939,14.92600954,2150.2,2149.2,0.140112]
[1773414286233,5.90985954,2150.2,2149.2,0.140112]
[1773414286647,4.004823,2150.2,2149.2,0.140112]
[1773414286844,8.205865,2150.2,2149.1,0.140112]
[1773414287065,6.22121281,2150.2,2149.1,0.140112]
[1773414287258,2.77962847,2150.3,2149.2,0.140112]
[1773414287761,2.77962847,2150.3,2149.3,1.1631694]
[1773414287963,9.00084128,2150.3,2149.3,0.140112]
[1773414288267,6.22121281,2150.1,2148.8,1.16340031]
[1773414288564,6.1786045,2150.1,2148.5,8.62126525]
[1773414288764,6.20637701,2150.1,2148.6,1.21005241]
[1773414288966,6.22121281,2150.0,2148.6,1.21005241]
[1773414289139,6.22121281,2150.0,2148.6,7.23984192]
[1773414289543,6.22121281,2150.0,2148.6,7.19329999]
[1773414289758,1.16284478,2149.9,2148.6,7.19329999]
[1773414289962,1.13478583,2149.9,2148.6,7.19329999]
[1773414290135,1.09285087,2149.9,2148.6,7.23984192]
[1773414290353,1.617,2150.3,2149.1,0.0011]
[1773414290354,1.11954437,2150.2,2149.1,0.0011]
[1773414290665,1.10485121,2150.2,2149.1,6.03088951]
[1773414290966,1.0615505,2150.2,2149.1,6.03088951]
[1773414291138,1.16261064,2150.4,2149.1,6.03088951]
[1773414291334,1.14811,2150.4,2149.2,6.06236462]
[1773414291539,1.14811,2150.4,2149.1,0.0011]
[1773414291540,8.12816384,2150.3,2149.1,0.0011]
[1773414291759,1.16268254,2150.2,2149.1,0.0011]
[1773414291953,1.13382419,2150.2,2149.1,0.0011]
[1773414292167,1.07598026,2150.2,2149.1,0.0011]
[1773414292367,1.04670183,2150.2,2149.1,0.0011]
[1773414292674,1.00373353,2150.2,2149.1,0.0011]
[1773414292841,0.97547988,2150.2,2149.1,0.0011]
[1773414293168,1.14781673,2150.8,2149.2,6.06236462]
[1773414293337,2.76627108,2151.0,2149.3,6.06236462]
[1773414293540,18.958109,2150.9,2149.3,6.06236462]
[1773414293768,21.54737176,2150.9,2149.3,6.06236462]
[1773414293970,1.1205315,2150.8,2149.4,7.2254799]
[1773414294142,1.60373114,2151.0,2149.5,6.06236462]
[1773414294345,1.57424957,2151.0,2149.5,6.06236462]
[1773414295473,1.53168136,2151.0,2149.5,6.06236462]
[1773414295677,2.78014206,2151.2,2149.5,6.06236462]
[1773414295875,2.76559082,2151.2,2149.7,6.06236462]
[1773414297854,8.63675466,2151.2,2149.7,6.06236462]
[1773414298057,5.87116384,2153.3,2149.9,6.06236462]
[1773414298371,5.87116384,2153.3,2149.8,30.36299795]
[1773414298372,1.614,2152.5,2151.0,6.06236462]
[1773414298572,1.58572066,2152.5,2151.0,6.06236462]
[1773414298765,3.749319,2152.4,2151.3,0.027936]
[1773414298943,3.69578465,2152.3,2151.3,0.027936]
[1773414299140,3.69578465,2152.3,2151.0,6.06236462]
[1773414299141,5.85742476,2152.5,2151.5,0.057024]
[1773414299357,5.81431971,2152.5,2151.5,0.057024]
[1773414299580,5.77151435,2152.5,2151.3,0.057024]
[1773414299877,5.74225507,2152.5,2151.3,0.057024]
[1773414300173,1.11753075,2152.4,2151.3,1.21908943]
[1773414300487,1.11753075,2152.4,2151.9,0.057024]
[1773414300488,2.70171154,2152.4,2151.9,0.057024]
[1773414300643,2.70171154,2152.4,2151.4,6.06236462]
[1773414301187,1.08871154,2152.4,2151.4,6.06236462]
[1773414301384,3.56490069,2152.7,2151.4,6.06236462]
[1773414302285,3.56490069,2152.7,2151.5,1.16198001]
[1773414302469,1.95189964,2152.7,2151.5,7.22434463]
[1773414302789,1.9519021,2152.7,2151.5,7.22434463]
[1773414302987,7.03217252,2153.4,2151.6,6.06236462]
[1773414303193,1.614,2153.2,2151.8,6.06236462]
[1773414303390,1.614,2153.7,2152.2,6.06236462]
[1773414304289,2.77479368,2153.7,2152.4,6.06236462]
[1773414304487,5.87116384,2153.6,2152.2,1.16156293]
[1773414304993,5.87116384,2153.4,2151.4,6.06236462]
[1773414305177,5.87116384,2153.0,2151.4,7.22439864]
[1773414305384,5.87116384,2152.9,2151.4,7.22439864]
[1773414305579,7.48516384,2152.8,2151.4,7.22439864]
[1773414305785,7.47012577,2152.8,2151.4,7.22439864]
[1773414305981,0.03677307,2152.6,2151.0,2.70235369]
[1773414306181,1.16138623,2152.6,2151.2,1.16214206]
[1773414306391,1.614,2152.9,2151.2,7.22450668]
[1773414306794,1.14745341,2153.0,2151.5,6.06236462]
[1773414306968,10.51584567,2153.1,2151.5,6.06236462]
[1773414306969,1.16115518,2153.1,2151.5,6.06236462]
[1773414307171,2.77615518,2153.1,2151.5,6.06236462]
[1773414307375,8.31473,2152.9,2151.5,6.06236462]
[1773414307575,8.31473,2152.9,2151.1,4.64856824]
[1773414307576,5.87116384,2152.8,2151.1,7.22452687]
[1773414307765,5.87116384,2152.9,2151.3,6.06236462]
[1773414307960,5.87116384,2152.9,2151.1,1.16216225]
[1773414308196,5.87116384,2152.7,2151.0,4.1027119]
[1773414308402,5.87116384,2152.3,2150.5,6.06236462]
[1773414308702,5.87116384,2151.9,2150.2,10.71296778]
[1773414308903,1.615,2151.8,2150.2,10.71296778]
[1773414309296,1.615,2151.8,2150.3,0.04650513]
[1773414309545,5.87116384,2151.7,2150.1,1.16270085]
[1773414309688,32.43174884,2150.8,2149.2,6.06236462]
[1773414310014,1.615,2150.7,2149.2,6.06236462]
[1773414310184,0.065536,2151.1,2149.1,2.79623668]
[1773414310185,1.16230415,2150.9,2149.4,1.16311528]
[1773414310510,7.03346799,2150.9,2149.3,7.22549762]
[1773414310813,5.87116384,2150.6,2149.1,1.16434501]
[1773414311018,5.87116384,2150.4,2149.1,1.16435783]
[1773414311171,5.84268542,2150.4,2149.1,0.0011]
[1773414311374,5.81299896,2150.4,2149.1,0.0476311]
[1773414311596,5.81299896,2150.4,2149.1,0.0011]
[1773414311782,0.02251182,2150.2,2149.1,0.0011]
[1773414311986,5.87116384,2150.0,2149.1,0.0011]
[1773414312183,5.87116384,2149.8,2148.9,0.0011]
[1773414312400,7.03411681,2149.7,2148.9,0.0011]
[1773414312704,5.87116384,2149.5,2148.8,0.0011]
[1773414313130,10.24460584,2149.4,2148.8,0.0011]
[1773414313281,0.02251182,2148.9,2148.3,0.0011]
[1773414313599,5.87116384,2149.1,2148.3,0.0011]
[1773414313798,0.02251182,2148.7,2148.3,0.0011]
[1773414314204,1.16333178,2149.0,2148.3,0.0011]
[1773414314393,8.65044203,2149.1,2148.3,0.0011]
[1773414314876,4.6531106,2149.4,2148.3,0.0011]
[1773414314877,10.52323518,2149.6,2148.3,0.0011]
[1773414315074,5.87116384,2149.3,2148.3,0.0011]
[1773414315310,0.02251182,2149.0,2148.3,0.0011]
[1773414315622,5.87116384,2149.2,2148.3,0.0011]
[1773414315825,0.02251182,2149.1,2148.3,0.0011]
[1773414315987,5.87116384,2149.2,2148.3,0.0011]
[1773414316318,7.05689918,2149.2,2149.1,0.0011]
[1773414316632,7.03415631,2149.7,2149.1,0.0011]
[1773414316918,0.02251182,2149.5,2149.1,0.0011]
[1773414317300,1.14816299,2149.7,2149.1,0.0011]
[1773414317621,1.10640384,2149.7,2149.1,0.0011]
[1773414317823,1.05764513,2149.7,2149.1,0.0011]
[1773414317981,1.02887568,2149.7,2149.1,0.0011]
[1773414318312,4.65181188,2149.8,2149.1,0.0011]
[1773414318511,4.6233111,2149.8,2149.1,0.0011]
[1773414318903,4.59509069,2149.8,2149.1,0.0011]
[1773414319101,4.58092452,2149.8,2149.1,0.0011]
[1773414319282,7.01919417,2149.8,2149.1,0.0011]
[1773414319483,5.87116384,2149.7,2148.9,0.0011]
[1773414319690,17.13192184,2149.6,2148.9,0.0011]
[1773414319910,1.616,2149.6,2148.9,0.0011]
[1773414320317,1.60104123,2149.6,2148.9,0.0011]
[1773414320523,1.10481985,2149.5,2148.9,0.0011]
[1773414320731,1.06104178,2149.5,2148.9,0.0011]
[1773414320950,1.01661449,2149.5,2148.9,0.0011]
[1773414321091,0.98728671,2149.5,2148.9,0.0011]
[1773414321296,0.04035654,2149.6,2148.9,0.0011]
[1773414321497,1.12006213,2149.7,2148.9,0.0011]
[1773414321708,1.09115414,2149.7,2148.9,0.0011]
[1773414321997,0.01139019,2149.6,2148.9,0.0011]
[1773414322234,1.16273661,2150.1,2148.9,0.0011]
[1773414322442,1.16252034,2150.5,2149.0,7.36674625]
[1773414322734,1.13427749,2150.5,2149.0,7.36674625]
[1773414323298,1.13427749,2150.5,2149.1,6.24994557]
[1773414323917,1.16247457,2150.6,2149.2,6.20341447]
[1773414324330,4.64943375,2150.8,2149.3,1.1631694]
[1773414324499,4.64943375,2150.8,2149.3,7.36658387]
[1773414325614,5.90133169,2150.7,2149.3,1.1631694]
[1773414326195,4.64943375,2150.8,2149.3,7.36658387]
[1773414326898,9.06376169,2150.6,2149.0,10.85657534]
[1773414327227,9.06376169,2150.6,2148.9,1.39691132]
[1773414327228,5.90133169,2150.4,2148.9,0.0011]
[1773414327428,5.90133169,2150.1,2148.9,0.0011]
[1773414327726,19.521064,2150.2,2148.9,0.0011]
[1773414327727,5.87244671,2149.8,2148.9,0.0011]
[1773414327958,5.82854258,2149.8,2148.6,0.0011]
[1773414328241,5.82854258,2149.8,2146.9,1.1644697]
[1773414328242,5.90133169,2148.6,2146.9,1.1644697]
[1773414328398,10.55639174,2148.3,2146.7,4.65809577]
[1773414328608,7.03648293,2148.3,2146.7,10.86151024]
[1773414328802,6.99271012,2148.3,2146.8,0.04658095]
[1773414328996,6.95117316,2148.3,2146.8,0.04658095]
[1773414329326,7.06505356,2148.3,2146.7,4.65809577]
[1773414329527,7.02144419,2148.3,2146.8,0.04658095]
[1773414329733,7.00725835,2148.3,2146.8,0.04658095]
[1773414330038,1.16371986,2148.3,2146.8,6.24999542]
[1773414330333,1.16365667,2148.4,2146.8,6.24999542]
[1773414330543,1.14922172,2148.4,2147.0,6.20341447]
[1773414330700,1.13500199,2148.4,2147.0,6.20341447]
[1773414330909,6.2714491,2148.5,2147.1,0.04657444]
[1773414330910,2.75222802,2148.5,2147.1,0.04657444]
[1773414331127,2.70908115,2148.5,2147.0,6.20341447]
[1773414331321,2.69530447,2148.5,2147.0,6.20341447]
[1773414332530,2.69530447,2148.5,2147.1,1.16436123]
[1773414332827,2.69529984,2148.5,2147.1,1.16436123]
[1773414333347,2.69529984,2148.5,2147.2,0.04657228]
[1773414333650,2.69529984,2148.5,2147.1,1.16436123]
[1773414333859,5.90133169,2148.4,2146.6,0.00378969]
[1773414334146,5.90133169,2148.4,2146.7,10.86165105]
[1773414334348,5.90133169,2148.4,2146.8,0.04658095]
[1773414334666,7.06504253,2148.3,2146.9,1.1644697]
[1773414334950,7.06504253,2148.3,2146.6,0.00378969]
[1773414334951,5.88748059,2148.1,2146.6,0.00378969]
[1773414335147,1.13470809,2148.3,2146.6,0.00378969]
[1773414335148,5.88723915,2147.8,2146.6,0.00378969]
[1773414335313,4.36886977,2147.9,2146.6,0.00378969]
[1773414335314,21.222359,2147.7,2146.6,0.00378969]
[1773414335518,5.90133169,2147.4,2146.4,0.0011]
[1773414335741,7.47645463,2147.4,2146.4,0.0011]
[1773414335943,7.49122655,2147.4,2146.4,1.21239219]
[1773414336150,7.4497387,2147.4,2146.4,1.16580256]
[1773414336318,7.40588131,2147.4,2146.4,1.16580256]
[1773414336517,7.05179968,2147.3,2146.4,0.0011]
[1773414336732,7.02308921,2147.3,2146.4,0.0011]
[1773414337054,6.94952021,2147.3,2146.4,0.0011]
[1773414337261,6.90644513,2147.3,2146.4,0.0011]
[1773414337548,6.87772854,2147.3,2146.4,0.0011]
[1773414337716,6.84901466,2147.3,2146.4,0.0011]
[1773414338245,2.66875902,2147.4,2146.4,0.0011]
[1773414338845,1.12012209,2147.7,2146.4,0.0011]
[1773414339016,2.73700822,2147.9,2146.4,0.0011]
[1773414339017,1.14985211,2147.9,2146.4,6.20451447]
[1773414339212,1.13577786,2147.9,2146.4,6.20451447]
[1773414340246,7.06505251,2148.3,2146.5,6.25000193]
[1773414340419,1.16372101,2148.3,2146.7,6.20341447]
[1773414340753,5.90133169,2148.1,2146.7,1.16454445]
[1773414340951,5.87309148,2148.1,2146.7,1.16454445]
[1773414341244,5.81510536,2148.1,2146.8,0.04658095]
[1773414341450,5.7719034,2148.1,2146.8,0.04658095]
[1773414341648,5.75752006,2148.1,2146.7,1.16454445]
[1773414341844,5.71368157,2148.1,2146.7,1.16454445]
[1773414342054,5.68535941,2148.1,2146.8,0.04658095]
[1773414342352,5.90133169,2147.9,2146.4,1.16578669]
[1773414342651,1.16409014,2147.6,2146.6,1.16573244]
[1773414343031,1.16409014,2147.6,2146.6,0.0011]
[1773414343231,1.14901884,2147.6,2146.6,0.0011]
[1773414343431,2.76669408,2147.7,2146.6,0.0011]
[1773414343958,2.76669408,2147.7,2146.6,0.04768529]
[1773414344248,2.76669408,2147.7,2146.7,0.04658312]
[1773414344425,2.76669408,2147.7,2146.6,0.0011]
[1773414344627,2.75264547,2147.7,2146.6,0.0011]
[1773414344953,5.90133169,2147.6,2146.6,0.0011]
[1773414345331,2.75264547,2147.7,2146.6,0.0011]
[1773414345847,2.75261534,2147.7,2146.6,0.0011]
[1773414346057,1.58856722,2147.7,2146.6,0.0011]
[1773414346229,1.58856722,2147.7,2146.6,0.04768529]
[1773414346667,1.16483351,2148.1,2146.6,6.06406846]
[1773414346973,6.38427034,2148.1,2146.7,1.16457818]
[1773414348047,6.38427034,2148.1,2146.6,1.16572844]
[1773414348048,9.58977534,2147.9,2146.6,1.16572844]
[1773414348251,6.38327034,2147.9,2146.7,0.04658312]
[1773414348452,0.001,2148.1,2146.8,6.01638317]
[1773414348662,1.16364534,2148.5,2146.9,6.06296195]
[1773414348831,1.16364534,2148.5,2147.0,7.18079863]
[1773414349227,6.38327034,2148.3,2146.7,1.16457818]
[1773414349451,6.35533966,2148.3,2146.7,7.18096135]
[1773414349682,6.34073038,2148.3,2146.7,7.18096135]
[1773414349864,6.31259124,2148.3,2146.7,7.18096135]
[1773414350028,6.2691615,2148.3,2146.7,7.18096135]
[1773414350230,6.23999948,2148.3,2146.7,7.18096135]
[1773414350459,1.16364534,2148.5,2146.7,7.18096135]
[1773414350641,6.38327034,2148.3,2146.7,7.18096135]
[1773414351042,1.16376501,2148.2,2146.7,7.18096135]
[1773414351259,1.13467877,2148.2,2146.7,7.18096135]
[1773414351443,7.50401863,2148.3,2146.7,7.18096135]
[1773414351653,7.47549291,2148.3,2146.7,7.18096135]
[1773414351963,7.44744891,2148.3,2146.7,7.18096135]
[1773414352263,6.04527244,2147.5,2146.6,0.0011]
[1773414352565,3.107565,2147.4,2146.6,0.0011]
[1773414352743,6.03031646,2147.3,2146.6,0.0011]
[1773414352941,6.11080844,2147.8,2146.6,1.16572748]
[1773414353262,6.04527244,2147.6,2146.6,0.0011]
[1773414354159,6.04527244,2147.6,2146.9,0.0011]
[1773414354362,6.04527244,2147.4,2146.6,0.0011]
[1773414354543,6.04527244,2147.2,2146.6,0.0011]
[1773414355050,1.16436123,2147.1,2146.6,0.0011]
[1773414355264,7.20963367,2147.1,2146.6,0.0011]
[1773414355432,7.64588869,2147.0,2146.6,0.0011]
[1773414355633,7.58963757,2147.0,2146.6,0.0011]
[1773414355848,6.04527244,2146.9,2146.6,0.0011]
[1773414356160,1.50140184,2147.0,2146.6,0.0011]
[1773414356458,1.16409014,2147.6,2146.6,0.0011]
[1773414356659,1.13453478,2147.6,2146.6,0.0011]
[1773414357347,1.13453478,2147.6,2146.6,0.04768528]
[1773414357760,1.13453478,2147.6,2146.6,0.0011]
[1773414358864,1.16387337,2148.0,2146.6,6.46293923]
[1773414359040,1.13527057,2148.0,2146.7,1.16457818]
[1773414359241,1.09239477,2148.0,2146.7,1.16457818]
[1773414359459,1.03475722,2148.0,2146.7,1.16457818]
[1773414359633,0.99050173,2148.0,2146.7,1.16457818]
[1773414359833,6.030295,2147.8,2146.6,0.0011]
[1773414360039,6.00096916,2147.8,2146.6,1.16571628]
[1773414360238,5.97241729,2147.8,2146.7,0.04658312]
[1773414360440,5.95827168,2147.8,2146.6,0.0011]
[1773414360641,5.95827168,2147.8,2146.6,1.16571209]
[1773414360854,5.95827168,2147.8,2146.7,0.04658311]
[1773414361058,4.65649348,2148.1,2146.7,0.04658311]
[1773414361059,0.001,2148.1,2146.8,1.16452394]
[1773414361270,0.001,2148.1,2146.9,0.04657878]
[1773414361465,6.04627244,2148.1,2146.9,0.04657878]
[1773414361766,6.04527244,2147.7,2146.6,1.16572375]
[1773414362188,6.04527244,2147.7,2146.6,0.0011]
[1773414362543,6.04527244,2147.7,2146.6,1.2123149]
[1773414362947,6.04627244,2148.1,2146.6,1.16572961]
[1773414363446,6.04527244,2147.9,2146.6,0.0011]
[1773414363647,1.16387337,2148.0,2146.6,6.50952452]
[1773414364061,1.16387337,2148.0,2146.6,6.46293923]
[1773414364468,1.16484405,2148.1,2146.7,6.50379223]
[1773414364767,1.16484405,2148.1,2146.7,6.46183923]
[1773414364974,7.21011649,2148.1,2146.7,6.46183923]
[1773414365367,0.001,2148.1,2147.0,1.16441546]
[1773414365546,6.04527244,2148.1,2146.8,6.46183923]
[1773414365746,4.64231854,2148.2,2146.8,6.46183923]
[1773414366349,4.65484336,2148.4,2147.0,6.46183923]
[1773414366673,6.04527244,2148.5,2147.0,6.46183923]
[1773414366879,1.16352551,2148.7,2147.5,8.01854799]
[1773414367066,1.16352551,2148.7,2147.5,6.46183923]
[1773414367459,1.16338591,2148.9,2147.6,7.62592937]
[1773414368044,8.82263239,2149.0,2147.6,7.62592937]
[1773414368377,2.72013229,2149.0,2147.6,7.62592937]
[1773414368578,2.67551566,2149.0,2147.6,7.62592937]
[1773414368782,0.44722771,2149.4,2147.7,6.46183923]
[1773414369080,1.14886383,2149.3,2147.9,6.46183923]
[1773414369258,1.12123758,2149.3,2147.9,6.46183923]
[1773414369463,1.06299011,2149.3,2148.0,1.16387337]
[1773414369665,7.06517663,2149.3,2148.0,1.16387337]
[1773414369863,7.05061822,2149.3,2148.0,1.16387337]
[1773414370064,1.5958555,2149.4,2148.0,7.6257126]
[1773414370670,1.55265385,2149.4,2148.0,7.6257126]
[1773414370873,1.50955925,2149.4,2148.0,7.6257126]
[1773414371181,2.70168676,2149.2,2148.0,1.16387337]
[1773414371393,1.16327765,2149.1,2148.2,0.029267]
[1773414371563,6.03054897,2148.9,2147.9,0.029267]
[1773414371768,5.98875826,2148.9,2147.9,0.029267]
[1773414371970,1.58436385,2148.8,2148.2,0.029267]
[1773414372285,1.55521191,2148.8,2148.2,0.029267]
[1773414372486,1.5120476,2148.8,2148.2,0.029267]
[1773414372660,1.46889874,2148.8,2148.2,0.029267]
[1773414372979,1.397564,2148.8,2148.2,0.029267]
[1773414373179,1.13568359,2149.1,2148.3,0.029267]
[1773414373481,1.1206279,2149.1,2148.3,0.029267]
[1773414373689,4.6531106,2149.2,2148.4,1.16365667]
[1773414374182,1.16322352,2149.2,2148.4,1.16365667]
[1773414374354,1.16322352,2149.2,2148.7,0.029267]
[1773414374556,1.49566373,2149.4,2148.7,0.029267]
[1773414374758,1.16312211,2149.4,2149.0,0.029267]
[1773414374981,1.16308726,2149.5,2149.0,0.029267]
[1773414375358,2.77603018,2149.6,2149.0,0.029267]
[1773414375559,2.77604407,2149.6,2149.1,0.029267]
[1773414375990,2.74791497,2149.6,2149.1,0.029267]
[1773414376473,1.16273661,2150.1,2149.1,1.19249452]
[1773414377233,1.16273661,2150.1,2149.2,0.029267]
[1773414377366,4.65130449,2150.4,2149.8,0.029267]
[1773414377367,1.16361077,2150.4,2149.8,0.029267]
[1773414377558,1.16241223,2150.8,2149.9,1.16284478]
[1773414377796,2.77532348,2150.9,2150.4,0.029267]
[1773414377977,2.77530753,2150.9,2150.4,0.029267]
[1773414378192,2.77530753,2150.9,2149.9,1.16284478]
[1773414378193,1.613,2150.9,2150.6,0.029267]
[1773414378576,7.20736047,2151.3,2149.9,7.62468401]
[1773414380439,7.1936494,2151.3,2149.9,7.62468401]
[1773414380724,7.13676366,2151.3,2149.9,7.62468401]
[1773414381124,1.09149122,2151.3,2149.9,7.62468401]
[1773414381434,7.37688568,2151.3,2149.9,7.62468401]
[1773414381738,7.3207984,2151.3,2149.9,1.16284478]
[1773414381942,7.3207984,2151.3,2149.9,7.2754277]
[1773414381943,0.97702753,2151.3,2149.9,7.2754277]
[1773414382230,7.21840844,2151.3,2149.9,7.2754277]
[1773414382593,7.18941156,2151.3,2149.9,7.2754277]
[1773414382791,6.28551619,2151.3,2149.9,7.2754277]
[1773414382988,7.40353922,2151.3,2149.9,7.2754277]
[1773414383218,7.37449446,2151.3,2149.9,7.2754277]
[1773414383402,7.36003364,2151.3,2149.9,7.2754277]
[1773414383601,7.31629851,2151.3,2149.9,7.2754277]
[1773414383830,4.61941025,2151.4,2149.9,7.2754277]
[1773414384130,4.56212138,2151.4,2149.9,7.2754277]
[1773414384333,4.54803923,2151.4,2149.9,7.2754277]
[1773414384507,4.53429689,2151.4,2150.1,6.11258292]
[1773414384707,4.50569465,2151.4,2150.1,7.73541285]
[1773414384896,1.09759059,2151.8,2150.5,6.11258292]
[1773414385104,1.0825837,2151.8,2150.5,6.11258292]
[1773414385401,4.64675754,2152.1,2150.7,6.11258292]
[1773414385601,1.14709838,2152.1,2150.8,1.63308571]
[1773414385825,1.10352102,2152.1,2151.1,6.11258292]
[1773414385998,1.06056989,2152.1,2151.1,6.11258292]
[1773414386331,7.3179966,2152.1,2151.0,1.16225011]
[1773414386495,7.3030733,2152.1,2150.5,7.27510326]
[1773414386838,1.14744115,2152.4,2151.0,6.11258292]
[1773414386996,1.11744672,2152.4,2151.0,6.11258292]
[1773414387349,1.07418985,2152.4,2151.0,6.11258292]
[1773414387507,7.35885764,2152.4,2150.6,6.11258292]
[1773414387708,7.31511299,2152.4,2150.6,6.11258292]
[1773414387940,0.97318289,2152.4,2151.0,6.11258292]
[1773414388234,0.90017739,2152.4,2150.9,1.63308571]
[1773414388428,0.90017739,2152.4,2151.0,6.11258292]
[1773414388730,4.63105395,2152.5,2151.0,6.11258292]
[1773414388905,1.11857588,2152.4,2151.0,6.11258292]
[1773414389111,1.07606017,2152.4,2151.0,6.11258292]
[1773414389311,1.03411393,2152.4,2151.0,6.11258292]
[1773414389713,1.03411393,2152.4,2150.7,1.16241223]
[1773414389714,0.99126098,2152.4,2151.2,6.11258292]
[1773414389923,4.60242254,2152.6,2151.3,7.27467095]
[1773414390244,4.58832198,2152.6,2151.3,7.27467095]
[1773414390619,6.29964538,2152.5,2150.9,7.27483423]
[1773414391118,6.29964538,2152.5,2151.1,0.5]
[1773414391317,4.58832198,2152.6,2151.2,6.11258292]
[1773414391624,4.58832198,2152.6,2151.4,7.66236713]
[1773414392008,4.58832198,2152.6,2151.5,7.27456293]
[1773414392009,0.001,2152.2,2151.5,7.27456293]
[1773414392241,4.58832198,2152.6,2151.5,7.27456293]
[1773414392653,2.77438623,2152.7,2151.5,7.27456293]
[1773414392654,2.77434844,2152.7,2151.7,7.66236713]
[1773414392967,2.75977523,2152.7,2151.5,7.27456293]
[1773414393241,4.64404246,2153.3,2152.2,1.54978421]
[1773414393415,4.62978378,2153.3,2152.2,1.54978421]
[1773414393615,4.62978378,2153.3,2152.2,6.11258292]
[1773414393918,1.16100868,2153.4,2152.3,1.16154811]
[1773414394419,6.29964538,2153.3,2152.0,1.16167949]
[1773414394618,6.29964538,2153.3,2151.6,4.64751958]
[1773414394858,6.29964538,2153.1,2151.6,1.161926]
[1773414395047,6.29964538,2153.1,2151.5,1.16196409]
[1773414395447,6.29964538,2152.7,2150.4,6.11258292]
[1773414395649,6.29964538,2152.5,2150.6,6.11258292]
[1773414395943,1.16149414,2152.4,2150.9,7.27488707]
[1773414396144,7.46113952,2152.4,2151.0,0.04649]
[1773414396536,7.46113952,2152.4,2150.5,0.5]
[1773414396537,6.29964538,2152.2,2150.5,0.5]
[1773414396741,6.29964538,2152.0,2150.5,1.16247931]
[1773414396974,6.27048739,2152.0,2150.5,7.27506223]
[1773414397275,7.46113952,2152.4,2150.7,6.11258292]
[1773414397569,9.94639538,2152.3,2150.7,6.11258292]
[1773414397751,6.29964538,2152.3,2150.7,6.11258292]
[1773414398371,7.46124746,2152.2,2150.8,1.16235819]
[1773414398879,7.46124746,2152.2,2150.7,1.16237115]
[1773414399055,7.46124746,2152.2,2150.7,7.27495407]
[1773414399446,7.46124746,2152.2,2150.7,1.16237115]
[1773414399842,7.46124746,2152.2,2150.8,6.15907724]
[1773414400582,7.46124746,2152.2,2150.9,1.16230415]
[1773414400877,7.43269575,2152.2,2151.0,0.04649]
[1773414401064,1.09046677,2152.2,2151.0,6.15907292]
[1773414401262,1.04808403,2152.2,2151.0,6.11258292]
[1773414401459,1.00441614,2152.2,2151.0,6.11258292]
[1773414401662,0.98958098,2152.2,2151.0,6.11258292]
[1773414401972,1.58350603,2152.4,2151.1,6.15907076]
[1773414402271,1.613,2152.4,2151.1,6.11258292]
[1773414402684,1.16154811,2152.3,2151.2,1.16214206]
[1773414402888,7.45190132,2152.3,2151.3,0.04648352]
[1773414403097,1.15225594,2152.3,2151.4,0.04648136]
[1773414403265,1.15225594,2152.3,2151.1,6.11258292]
[1773414403466,1.15225594,2152.3,2151.2,0.04648568]
[1773414403977,1.10994617,2152.3,2151.2,0.04648568]
[1773414404176,1.05296281,2152.3,2151.2,0.04648568]
[1773414404382,1.00987429,2152.3,2151.1,6.11258292]
[1773414404601,0.96572465,2152.3,2151.1,6.11258292]
[1773414404767,0.96572465,2152.3,2151.2,1.16214206]
[1773414404968,0.92222709,2152.3,2151.3,0.04758352]
[1773414405267,12.55883782,2152.4,2151.3,0.04758352]
[1773414405615,7.46119349,2152.3,2151.3,0.04758352]
[1773414406401,7.4473742,2152.3,2151.3,0.04758352]
[1773414406605,7.41909694,2152.3,2151.4,0.04648136]
[1773414406774,7.41909694,2152.3,2151.3,0.0011]
[1773414407796,7.41909694,2152.3,2151.3,0.04758352]
[1773414408307,5.9749815,2152.1,2151.2,999.94278255]
[1773414408532,5.9749815,2151.8,2151.2,999.79278255]
[1773414408670,6.0065438,2151.8,2151.2,999.79278255]
[1773414409065,7.1077489,2151.7,2151.2,953.05273905]